fUST/lending_fUST_20240306
["ID","MTS","AMOUNT","RATE_DAILY","PERIOD"]
[317009903,1709667041858,-1344.51,0.00023999,2]
[317009905,1709667041867,-1344.51,0.00023999,2]
[317009908,1709667041877,-1344.51,0.00023999,2]
[317009910,1709667041887,-1344.66928432,0.00023999,2]
[317009912,1709667041896,-1955.12,0.00023999,2]
[317009913,1709667041905,-1955.12,0.00023999,2]
[317009915,1709667041915,-1955.12,0.00023999,2]
[317009917,1709667041924,-1955.12,0.00023999,2]
[317009919,1709667041932,-1955.12,0.00023999,2]
[317009921,1709667041944,-1955.12,0.00023999,2]
[317009923,1709667041953,-1955.12,0.00023999,2]
[317009925,1709667041962,-1955.12,0.00023999,2]
[317009927,1709667041971,-1955.12,0.00023999,2]
[317009929,1709667041980,-1955.12,0.00023999,2]
[317009931,1709667041989,-1955.12,0.00023999,2]
[317009933,1709667041999,-1955.12,0.00023999,2]
[317009935,1709667042009,-1955.12,0.00023999,2]
[317009937,1709667042019,-1955.15873791,0.00023999,2]
[317009939,1709667042028,-4214.94,0.00023999,2]
[317009941,1709667042038,-4214.94,0.00023999,2]
[317009943,1709667042048,-4214.94,0.00023999,2]
[317009945,1709667042057,-4214.94,0.00023999,2]
[317009947,1709667042068,-4214.94,0.00023999,2]
[317009949,1709667042078,-4214.94,0.00023999,2]
[317009951,1709667042087,-4214.94,0.00023999,2]
[317009953,1709667042097,-4214.94,0.00023999,2]
[317009955,1709667042106,-4214.94,0.00023999,2]
[317009957,1709667042115,-4214.94,0.00023999,2]
[317009959,1709667042125,-4214.94,0.00023999,2]
[317009961,1709667042134,-4214.94,0.00023999,2]
[317009963,1709667042144,-4214.94,0.00023999,2]
[317009964,1709667042155,-4215.0035462,0.00023999,2]
[317009966,1709667042164,-3301.71,0.00023999,2]
[317009968,1709667042173,-873297.63314142,0.00024,5]
[317009971,1709667042191,-31214.00564243,0.00024,5]
[317009973,1709667042202,-469.63456627,0.00024,5]
[317010217,1709667044767,-523.53543373,0.00023759,2]
[317010226,1709667044843,-3156.95,0.00023759,2]
[317010228,1709667044856,-1314.93069633,0.00023759,2]
[317010230,1709667044865,-3301.71,0.00023999,2]
[317010232,1709667044875,-3301.71,0.00023999,2]
[317010234,1709667044884,-3301.71,0.00023999,2]
[317010236,1709667044894,-3301.71,0.00023999,2]
[317010238,1709667044903,-3207.77477007,0.00023999,2]
[317010290,1709667045398,-93.93522993,0.00023999,2]
[317010292,1709667045407,-3301.71,0.00023999,2]
[317010294,1709667045416,-3301.71,0.00023999,2]
[317010296,1709667045425,-3301.71,0.00023999,2]
[317010298,1709667045434,-3301.71,0.00023999,2]
[317010300,1709667045444,-3301.71,0.00023999,2]
[317010302,1709667045453,-3301.71,0.00023999,2]
[317010304,1709667045462,-3301.71,0.00023999,2]
[317010306,1709667045470,-3301.86204153,0.00023999,2]
[317010308,1709667045479,-1443538.5625041,0.00024,5]
[317010310,1709667045491,-398923.44754525,0.00024,5]
[317010312,1709667045503,-629.5,0.00024,5]
[317010314,1709667045513,-1600.71078841,0.00024,5]
[317010316,1709667045527,-6265.0507151,0.00024,5]
[317010318,1709667045538,-175580.83143852,0.00024,5]
[317010323,1709667045574,-1236.91602553,0.00024,5]
[317010325,1709667045585,-1315.65251719,0.00024,5]
[317010671,1709667049049,-2926.600005,0.00024,5]
[317010673,1709667049061,-3397.21170079,0.00024,5]
[317010684,1709667049160,-16679.38739031,0.00024,5]
[317010727,1709667049628,-634.4,0.00024,5]
[317010729,1709667049640,-15887.7487503,0.00024,5]
[317012924,1709668235019,-856.41945695,0.00019345,2]
[317012926,1709668235029,-155.05426899,0.00019346,2]
[317012928,1709668235039,-318.94269526,0.00019347,2]
[317012930,1709668235053,-155.05426899,0.00019347,2]
[317012932,1709668235063,-856.41945695,0.00019348,2]
[317012934,1709668235073,-588.234167,0.00019548,2]
[317012936,1709668235083,-300.0,0.00020059,2]
[317012937,1709668235093,-20318.55108034,0.0002006,2]
[317012940,1709668235107,-171.76070188,0.0002006,2]
[317012942,1709668235116,-478.7968368,0.00020061,2]
[317012944,1709668235128,-558.0,0.00020061,2]
[317012946,1709668235141,-1410.0,0.00020061,2]
[317012949,1709668235153,-22453.2031632,0.00020061,2]
[317012951,1709668235164,-1077.64599266,0.00021,2]
[317012953,1709668235174,-1037.95718595,0.00021072,2]
[317012955,1709668235184,-253.0,0.00021841,2]
[317012957,1709668235194,-350.29777165,0.000219,2]
[317012959,1709668235203,-265.1284503,0.00021918,2]
[317012961,1709668235213,-311.0,0.00022,2]
[317012963,1709668235223,-311.0,0.00022192,2]
[317012965,1709668235233,-394.88,0.00022212,3]
[317012966,1709668235243,-197.44,0.00022212,3]
[317012969,1709668235254,-592.32,0.00022212,3]
[317012971,1709668235264,-294.94,0.00022212,3]
[317012972,1709668235276,-884.87,0.00022212,3]
[317012974,1709668235285,-48205.1753251,0.00022222,7]
[317012978,1709668235311,-1794.8246749,0.00022222,7]
[317012980,1709668235320,-167.304574,0.00022371,2]
[317012982,1709668235330,-250.0,0.00022758,2]
[317012984,1709668235340,-13885.70211516,0.00022949,2]
[317012986,1709668235350,-3174.06436465,0.0002295,4]
[317012988,1709668235361,-4690.12546638,0.0002295,2]
[317012990,1709668235372,-1055.27822994,0.0002295,2]
[317012992,1709668235382,-160.78876959,0.0002295,2]
[317012994,1709668235392,-155.0,0.00023,2]
[317012996,1709668235401,-311.0,0.00023014,2]
[317012998,1709668235411,-2420.27570044,0.00023171,6]
[317013000,1709668235420,-44958.54400514,0.00023171,6]
[317013002,1709668235430,-8008.24065091,0.00023171,6]
[317013004,1709668235439,-602.08564872,0.00023171,5]
[317013005,1709668235449,-500.0,0.00023287,2]
[317013006,1709668235458,-500.0,0.00023287,2]
[317013007,1709668235468,-500.0,0.00023287,2]
[317013008,1709668235478,-500.0,0.00023287,2]
[317013009,1709668235488,-500.0,0.00023287,2]
[317013010,1709668235498,-500.0,0.00023287,2]
[317013011,1709668235508,-500.0,0.00023287,2]
[317013012,1709668235518,-500.0,0.00023287,2]
[317013013,1709668235528,-500.0,0.00023287,2]
[317013014,1709668235539,-2678.75,0.00023287,2]
[317013015,1709668235660,-2678.75,0.00023287,2]
[317013016,1709668235670,-2678.75,0.00023287,2]
[317013017,1709668235680,-2678.75,0.00023287,2]
[317013018,1709668235689,-500.0,0.00023287,2]
[317013019,1709668235698,-500.0,0.00023287,2]
[317013020,1709668235707,-500.0,0.00023287,2]
[317013022,1709668235717,-500.0,0.00023287,2]
[317013023,1709668235725,-1288.49,0.00023287,2]
[317013025,1709668235734,-1288.49,0.00023287,2]
[317013027,1709668235744,-1288.49,0.00023287,2]
[317013029,1709668235753,-1288.49,0.00023287,2]
[317013031,1709668235764,-722.56,0.00023287,2]
[317013033,1709668235774,-722.56,0.00023287,2]
[317013035,1709668235785,-722.56,0.00023287,2]
[317013037,1709668235795,-722.56,0.00023287,2]
[317013039,1709668235812,-4039.32,0.00023287,2]
[317013041,1709668235823,-4039.32,0.00023287,2]
[317013043,1709668235832,-4039.32,0.00023287,2]
[317013045,1709668235841,-4039.32,0.00023287,2]
[317013046,1709668235852,-1375.71,0.00023287,2]
[317013048,1709668235862,-1375.71,0.00023287,2]
[317013050,1709668235873,-1375.71,0.00023287,2]
[317013052,1709668235882,-1375.71,0.00023287,2]
[317013054,1709668235892,-500.0,0.00023581,2]
[317013056,1709668235903,-281.98734491,0.00023581,2]
[317013058,1709668235913,-291.24349115,0.00023581,2]
[317013061,1709668235922,-500.0,0.00023581,2]
[317013062,1709668235932,-500.0,0.00023581,2]
[317013064,1709668235941,-789.76,0.00023582,3]
[317013066,1709668235951,-394.88,0.00023582,3]
[317013068,1709668235961,-589.88,0.00023582,3]
[317013070,1709668235971,-171.24940655,0.000238,2]
[317013073,1709668235981,-1000.0,0.00023871,2]
[317013074,1709668235990,-4880.73399445,0.00023886,2]
[317013076,1709668236000,-500.0,0.00023887,2]
[317013079,1709668236010,-500.0,0.00023887,2]
[317013080,1709668236020,-500.0,0.00023887,2]
[317013082,1709668236029,-500.0,0.00023887,2]
[317013084,1709668236039,-500.0,0.00023887,2]
[317013086,1709668236053,-500.0,0.00023887,2]
[317013088,1709668236063,-500.0,0.00023887,2]
[317013090,1709668236076,-500.0,0.00023887,2]
[317013092,1709668236085,-4723.61,0.00023887,2]
[317013094,1709668236095,-500.0,0.00023887,2]
[317013096,1709668236105,-8239.79880319,0.0002389,2]
[317013098,1709668236114,-153.89,0.00023899,2]
[317013100,1709668236124,-153.89,0.00023899,2]
[317013102,1709668236134,-153.89,0.00023899,2]
[317013104,1709668236143,-153.89,0.00023899,2]
[317013106,1709668236153,-153.89,0.00023899,2]
[317013108,1709668236162,-153.89,0.00023899,2]
[317013110,1709668236172,-153.89,0.00023899,2]
[317013112,1709668236181,-500.0,0.00023899,2]
[317013114,1709668236191,-500.0,0.00023899,2]
[317013116,1709668236201,-454.72198604,0.00023899,2]
[317013118,1709668236210,-2678.75,0.00023899,2]
[317013120,1709668236219,-2678.75,0.00023899,2]
[317013122,1709668236229,-2678.75,0.00023899,2]
[317013124,1709668236241,-2678.75,0.00023899,2]
[317013126,1709668236251,-2678.75,0.00023899,2]
[317013128,1709668236261,-500.0,0.00023899,2]
[317013130,1709668236271,-500.0,0.00023899,2]
[317013132,1709668236280,-500.0,0.00023899,2]
[317013134,1709668236290,-500.0,0.00023899,2]
[317013136,1709668236302,-500.0,0.00023899,2]
[317013138,1709668236312,-1288.49,0.00023899,2]
[317013140,1709668236322,-1288.49,0.00023899,2]
[317013142,1709668236331,-1288.49,0.00023899,2]
[317013144,1709668236341,-1288.49,0.00023899,2]
[317013146,1709668236351,-1288.49,0.00023899,2]
[317013148,1709668236360,-722.56,0.00023899,2]
[317013150,1709668236370,-722.56,0.00023899,2]
[317013152,1709668236379,-722.56,0.00023899,2]
[317013154,1709668236388,-722.56,0.00023899,2]
[317013156,1709668236398,-151.0,0.00023899,2]
[317013158,1709668236408,-151.0,0.00023899,2]
[317013160,1709668236417,-722.56,0.00023899,2]
[317013162,1709668236427,-4039.32,0.00023899,2]
[317013164,1709668236437,-4039.32,0.00023899,2]
[317013166,1709668236447,-4039.32,0.00023899,2]
[317013168,1709668236457,-4039.32,0.00023899,2]
[317013170,1709668236467,-4039.32,0.00023899,2]
[317013172,1709668236478,-1375.71,0.00023899,2]
[317013174,1709668236488,-1375.71,0.00023899,2]
[317013176,1709668236497,-1375.71,0.00023899,2]
[317013178,1709668236507,-1375.71,0.00023899,2]
[317013180,1709668236516,-1375.71,0.00023899,2]
[317013182,1709668236526,-191379.70057972,0.000239,2]
[317013183,1709668236535,-1740.58360794,0.000239,2]
[317013185,1709668236545,-1740.58360794,0.000239,2]
[317013187,1709668236559,-1740.58360794,0.000239,2]
[317013189,1709668236569,-1740.58360794,0.000239,2]
[317013192,1709668236579,-1740.58360794,0.000239,2]
[317013194,1709668236589,-1740.58360794,0.000239,2]
[317013195,1709668236598,-1740.58360794,0.000239,2]
[317013197,1709668236608,-1740.58360794,0.000239,2]
[317013199,1709668236617,-1740.58360794,0.000239,2]
[317013201,1709668236627,-1740.58360794,0.000239,2]
[317013203,1709668236636,-1740.58360794,0.000239,2]
[317013205,1709668236645,-1740.58360794,0.000239,2]
[317013207,1709668236655,-1740.58360794,0.000239,2]
[317013209,1709668236665,-1740.58360794,0.000239,2]
[317013211,1709668236675,-1740.58360794,0.000239,2]
[317013213,1709668236685,-1740.58360794,0.000239,2]
[317013215,1709668236695,-1740.58360794,0.000239,2]
[317013217,1709668236704,-1740.58360794,0.000239,2]
[317013219,1709668236713,-1740.58360794,0.000239,2]
[317013221,1709668236723,-1740.58,0.000239,2]
[317013223,1709668236732,-6962.33443175,0.000239,2]
[317013225,1709668236742,-6962.33443175,0.000239,2]
[317013227,1709668236751,-6962.33443175,0.000239,2]
[317013230,1709668236761,-6962.33443175,0.000239,2]
[317013232,1709668236783,-6962.33443175,0.000239,2]
[317013234,1709668236793,-6962.33443175,0.000239,2]
[317013237,1709668236808,-6962.33443175,0.000239,2]
[317013239,1709668236819,-6962.33443175,0.000239,2]
[317013241,1709668236831,-6962.33443175,0.000239,2]
[317013242,1709668236841,-6962.33443175,0.000239,2]
[317013243,1709668236851,-6962.33443175,0.000239,2]
[317013245,1709668236863,-6962.33443175,0.000239,2]
[317013247,1709668236874,-6962.33443175,0.000239,2]
[317013249,1709668236884,-6962.33443175,0.000239,2]
[317013250,1709668236893,-6962.33443175,0.000239,2]
[317013252,1709668236904,-6962.33443175,0.000239,2]
[317013254,1709668236913,-6962.33443175,0.000239,2]
[317013255,1709668236923,-6962.33443175,0.000239,2]
[317013256,1709668236933,-6962.33443175,0.000239,2]
[317013257,1709668236942,-6962.33,0.000239,2]
[317013258,1709668236952,-157.90932338,0.000239,2]
[317013259,1709668236961,-157.9,0.000239,2]
[317013260,1709668236971,-500.0,0.00023948,2]
[317013261,1709668236981,-500.0,0.00023948,2]
[317013262,1709668236991,-500.0,0.00023948,2]
[317013263,1709668237000,-500.0,0.00023948,2]
[317013264,1709668237011,-4723.61,0.00023948,2]
[317013265,1709668237020,-610.08,0.00023995,2]
[317013266,1709668237030,-500.0,0.00023995,2]
[317013267,1709668237040,-500.0,0.00023995,2]
[317013268,1709668237052,-500.0,0.00023995,2]
[317013269,1709668237061,-161.47,0.00023996,2]
[317013270,1709668237071,-500.0,0.00023996,2]
[317013271,1709668237080,-500.0,0.00023996,2]
[317013272,1709668237090,-500.0,0.00023996,2]
[317013273,1709668237099,-500.0,0.00023996,2]
[317013274,1709668237108,-500.0,0.00023996,2]
[317013275,1709668237117,-500.0,0.00023996,2]
[317013276,1709668237126,-347.33147373,0.00023996,2]
[317013277,1709668237136,-4723.61,0.00023996,2]
[317013279,1709668237145,-4723.61,0.00023996,2]
[317013280,1709668237155,-4723.61,0.00023997,2]
[317013281,1709668237165,-4723.61,0.00023997,2]
[317013282,1709668237175,-2678.75,0.00023997,2]
[317013283,1709668237184,-2678.75,0.00023997,2]
[317013284,1709668237194,-500.0,0.00023997,2]
[317013285,1709668237203,-475.97044089,0.00023997,2]
[317013286,1709668237215,-1288.49,0.00023997,2]
[317013287,1709668237224,-1288.49,0.00023997,2]
[317013288,1709668237234,-722.56,0.00023997,2]
[317013289,1709668237244,-722.56,0.00023997,2]
[317013290,1709668237254,-4039.32,0.00023997,2]
[317013292,1709668237263,-4039.32,0.00023997,2]
[317013293,1709668237273,-1375.71,0.00023997,2]
[317013294,1709668237282,-1375.71,0.00023997,2]
[317013295,1709668237292,-1080.43819401,0.00023998,2]
[317013296,1709668237306,-1284.54999896,0.00023998,2]
[317013297,1709668237315,-781.65092481,0.00023998,2]
[317013298,1709668237324,-875.09853826,0.00023998,2]
[317013299,1709668237334,-291.08493038,0.00023998,2]
[317013300,1709668237343,-1635.48761741,0.00023998,2]
[317013301,1709668237352,-697.50319911,0.00023998,2]
[317013302,1709668237362,-523.33034418,0.00023998,2]
[317013303,1709668237372,-155.04341216,0.00023998,2]
[317013304,1709668237381,-651.0577104,0.00023998,2]
[317013305,1709668237392,-400.0,0.00023998,2]
[317013306,1709668237401,-557.44319736,0.00023998,2]
[317013307,1709668237410,-744.79129449,0.00023998,2]
[317013308,1709668237420,-155.33403758,0.00023998,2]
[317013309,1709668237429,-155.16455241,0.00023998,2]
[317013310,1709668237438,-402.12562078,0.00023998,2]
[317013311,1709668237448,-9732.99665347,0.00023998,2]
[317013312,1709668237457,-155.00776666,0.00023998,2]
[317013313,1709668237466,-155.63856023,0.00023998,2]
[317013314,1709668237476,-1473.11926256,0.00023998,2]
[317013315,1709668237486,-262.48262514,0.00023998,7]
[317013316,1709668237495,-1496.34296209,0.00023998,2]
[317013317,1709668237504,-500.0,0.00023998,2]
[317013318,1709668237515,-4723.61,0.00023998,2]
[317013319,1709668237525,-4723.61,0.00023998,2]
[317013320,1709668237534,-4723.61,0.00023998,2]
[317013321,1709668237543,-4723.61,0.00023998,2]
[317013322,1709668237558,-4723.61,0.00023998,2]
[317013323,1709668237567,-4723.61,0.00023998,2]
[317013324,1709668237577,-4723.61,0.00023998,2]
[317013325,1709668237586,-2678.75,0.00023998,2]
[317013326,1709668237596,-1288.49,0.00023998,2]
[317013327,1709668237605,-722.56,0.00023998,2]
[317013328,1709668237614,-155.82570647,0.00023998,2]
[317013329,1709668237624,-4039.32,0.00023998,2]
[317013330,1709668237633,-1375.71,0.00023998,2]
[317013331,1709668237643,-1007.87784897,0.00023999,2]
[317013333,1709668237652,-157.1740432,0.00023999,2]
[317013334,1709668237662,-4723.61,0.00023999,2]
[317013337,1709668237672,-4723.61,0.00023999,2]
[317013338,1709668237681,-2156.48548787,0.00023999,2]
[317013350,1709668237748,-1493.91252004,0.00023999,2]
[317013459,1709668238931,-155.06667867,0.00019344,2]
[317013461,1709668238941,-2763.7893,0.00021601,7]
[317013463,1709668238950,-500.0,0.0002222,2]
[317013466,1709668238960,-500.0,0.0002222,2]
[317013469,1709668238969,-500.0,0.0002222,2]
[317013472,1709668238979,-500.0,0.0002222,2]
[317013475,1709668238989,-500.0,0.0002222,2]
[317013478,1709668238998,-206.1938157,0.0002222,2]
[317013481,1709668239008,-500.0,0.0002222,2]
[317013484,1709668239018,-500.0,0.0002222,2]
[317013486,1709668239027,-500.0,0.0002222,2]
[317013489,1709668239037,-500.0,0.0002222,2]
[317013491,1709668239047,-500.0,0.0002222,2]
[317013493,1709668239062,-500.0,0.0002222,2]
[317013495,1709668239071,-500.0,0.0002222,2]
[317013497,1709668239083,-319.60561185,0.0002222,2]
[317013499,1709668239092,-500.0,0.0002222,2]
[317013501,1709668239102,-500.0,0.0002222,2]
[317013503,1709668239112,-500.0,0.0002222,2]
[317013505,1709668239123,-500.0,0.0002222,2]
[317013507,1709668239133,-200.67041341,0.0002222,2]
[317013509,1709668239143,-500.0,0.0002222,2]
[317013511,1709668239152,-500.0,0.0002222,2]
[317013513,1709668239162,-500.0,0.0002222,2]
[317013515,1709668239171,-500.0,0.0002222,2]
[317013517,1709668239181,-500.0,0.0002222,2]
[317013519,1709668239190,-500.0,0.0002222,2]
[317013521,1709668239200,-500.0,0.0002222,2]
[317013523,1709668239211,-500.0,0.0002222,2]
[317013525,1709668239221,-500.0,0.0002222,2]
[317013527,1709668239231,-500.0,0.0002222,2]
[317013529,1709668239240,-500.0,0.0002222,2]
[317013531,1709668239249,-271.95048681,0.0002222,2]
[317013533,1709668239262,-228.04951319,0.0002222,2]
[317013535,1709668239271,-248.3380632,0.0002222,2]
[317013537,1709668239282,-251.6619368,0.0002222,2]
[317013539,1709668239292,-500.0,0.0002222,2]
[317013541,1709668239307,-500.0,0.0002222,2]
[317013543,1709668239317,-500.0,0.0002222,2]
[317013545,1709668239327,-308.08927654,0.0002222,2]
[317013547,1709668239337,-500.0,0.0002222,2]
[317013549,1709668239347,-500.0,0.0002222,2]
[317013561,1709668239418,-500.0,0.0002222,2]
[317013563,1709668239446,-500.0,0.0002222,2]
[317013565,1709668239455,-500.0,0.0002222,2]
[317013566,1709668239464,-500.0,0.0002222,2]
[317013567,1709668239474,-500.0,0.0002222,2]
[317013568,1709668239483,-500.0,0.0002222,2]
[317013569,1709668239493,-500.0,0.0002222,2]
[317013570,1709668239502,-500.0,0.0002222,2]
[317013571,1709668239512,-500.0,0.0002222,2]
[317013572,1709668239521,-500.0,0.0002222,2]
[317013573,1709668239531,-500.0,0.0002222,2]
[317013574,1709668239540,-500.0,0.0002222,2]
[317013575,1709668239553,-500.0,0.0002222,2]
[317013576,1709668239563,-500.0,0.0002222,2]
[317013577,1709668239572,-500.0,0.0002222,2]
[317013578,1709668239582,-500.0,0.0002222,2]
[317013579,1709668239594,-307.41687073,0.0002222,2]
[317013580,1709668239603,-500.0,0.0002222,2]
[317013581,1709668239613,-500.0,0.0002222,2]
[317013582,1709668239622,-500.0,0.0002222,2]
[317013583,1709668239631,-500.0,0.0002222,2]
[317013584,1709668239640,-500.0,0.0002222,2]
[317013585,1709668239649,-500.0,0.0002222,2]
[317013586,1709668239659,-500.0,0.0002222,2]
[317013587,1709668239668,-500.0,0.0002222,2]
[317013588,1709668239678,-500.0,0.0002222,2]
[317013589,1709668239687,-500.0,0.0002222,2]
[317013590,1709668239696,-500.0,0.0002222,2]
[317013591,1709668239705,-4723.61,0.00023999,2]
[317013592,1709668239714,-4723.73999998,0.00023999,2]
[317013593,1709668239723,-513.61,0.00023999,2]
[317013594,1709668239732,-513.61,0.00023999,2]
[317013595,1709668239742,-513.61,0.00023999,2]
[317013596,1709668239751,-513.61,0.00023999,2]
[317013597,1709668239760,-513.61,0.00023999,2]
[317013598,1709668239769,-513.61,0.00023999,2]
[317013599,1709668239779,-513.61,0.00023999,2]
[317013600,1709668239790,-513.61,0.00023999,2]
[317013601,1709668239804,-513.61,0.00023999,2]
[317013602,1709668239814,-513.61,0.00023999,2]
[317013603,1709668239824,-513.61,0.00023999,2]
[317013604,1709668239835,-513.61,0.00023999,2]
[317013605,1709668239844,-513.61,0.00023999,2]
[317013606,1709668239853,-513.61,0.00023999,2]
[317013608,1709668239863,-513.61,0.00023999,2]
[317013609,1709668239873,-513.61,0.00023999,2]
[317013610,1709668239882,-513.61,0.00023999,2]
[317013611,1709668239890,-513.61,0.00023999,2]
[317013612,1709668239900,-513.61,0.00023999,2]
[317013613,1709668239910,-513.61,0.00023999,2]
[317013615,1709668239920,-513.61,0.00023999,2]
[317013616,1709668239929,-513.61,0.00023999,2]
[317013618,1709668239939,-513.61,0.00023999,2]
[317013619,1709668239948,-513.62138156,0.00023999,2]
[317013620,1709668239957,-2678.75,0.00023999,2]
[317013621,1709668239966,-2678.75,0.00023999,2]
[317013622,1709668239976,-2678.75,0.00023999,2]
[317013624,1709668239985,-2678.75,0.00023999,2]
[317013625,1709668239994,-2678.75,0.00023999,2]
[317013626,1709668240004,-2678.75,0.00023999,2]
[317013627,1709668240013,-1984.3316526,0.00023999,2]
[317013628,1709668240031,-694.4183474,0.00023999,2]
[317013629,1709668240040,-2678.75,0.00023999,2]
[317013630,1709668240053,-2678.75,0.00023999,2]
[317013631,1709668240062,-2678.75,0.00023999,2]
[317013632,1709668240073,-2678.75,0.00023999,2]
[317013633,1709668240082,-2678.79072216,0.00023999,2]
[317013634,1709668240092,-500.0,0.00023999,2]
[317013635,1709668240101,-500.0,0.00023999,2]
[317013636,1709668240110,-500.0,0.00023999,2]
[317013637,1709668240120,-500.0,0.00023999,2]
[317013638,1709668240131,-500.0,0.00023999,2]
[317013639,1709668240141,-622.68655641,0.00023999,2]
[317013640,1709668240151,-1288.49,0.00023999,2]
[317013641,1709668240160,-1288.49,0.00023999,2]
[317013642,1709668240169,-1288.49,0.00023999,2]
[317013643,1709668240178,-1288.49,0.00023999,2]
[317013644,1709668240187,-1288.49,0.00023999,2]
[317013645,1709668240196,-1288.49,0.00023999,2]
[317013646,1709668240206,-1288.49,0.00023999,2]
[317013647,1709668240215,-1288.49,0.00023999,2]
[317013648,1709668240224,-1288.49,0.00023999,2]
[317013649,1709668240234,-1288.49,0.00023999,2]
[317013650,1709668240244,-1288.49,0.00023999,2]
[317013651,1709668240254,-1288.61928432,0.00023999,2]
[317013652,1709668240264,-722.56,0.00023999,2]
[317013653,1709668240273,-722.56,0.00023999,2]
[317013654,1709668240283,-722.56,0.00023999,2]
[317013655,1709668240293,-722.56,0.00023999,2]
[317013656,1709668240307,-722.56,0.00023999,2]
[317013657,1709668240317,-722.56,0.00023999,2]
[317013658,1709668240326,-722.56,0.00023999,2]
[317013659,1709668240336,-722.56,0.00023999,2]
[317013660,1709668240346,-722.56,0.00023999,2]
[317013661,1709668240355,-722.56,0.00023999,2]
[317013662,1709668240365,-722.56,0.00023999,2]
[317013663,1709668240374,-722.79162296,0.00023999,2]
[317013664,1709668240383,-4039.32,0.00023999,2]
[317013665,1709668240393,-4039.32,0.00023999,2]
[317013666,1709668240402,-4039.32,0.00023999,2]
[317013667,1709668240411,-4039.32,0.00023999,2]
[317013668,1709668240420,-4039.32,0.00023999,2]
[317013669,1709668240428,-4039.32,0.00023999,2]
[317013670,1709668240437,-4039.32,0.00023999,2]
[317013671,1709668240447,-4039.32,0.00023999,2]
[317013672,1709668240455,-4039.32,0.00023999,2]
[317013673,1709668240465,-4039.32,0.00023999,2]
[317013674,1709668240474,-4039.32,0.00023999,2]
[317013675,1709668240483,-4039.3235462,0.00023999,2]
[317013676,1709668240493,-1375.71,0.00023999,2]
[317013677,1709668240502,-1375.71,0.00023999,2]
[317013678,1709668240512,-1375.71,0.00023999,2]
[317013679,1709668240522,-1375.71,0.00023999,2]
[317013680,1709668240531,-1375.71,0.00023999,2]
[317013681,1709668240539,-1375.71,0.00023999,2]
[317013682,1709668240550,-1375.71,0.00023999,2]
[317013683,1709668240559,-1375.71,0.00023999,2]
[317013684,1709668240568,-1375.71,0.00023999,2]
[317013685,1709668240577,-1375.71,0.00023999,2]
[317013686,1709668240585,-1375.71,0.00023999,2]
[317013687,1709668240594,-1731718.64679029,0.00024,5]
[317013688,1709668240610,-3140.14,0.00024,5]
[317013885,1709668248245,-505.17569995,0.00021998,2]
[317013886,1709668248257,-4476.29795273,0.00021998,2]
[317013887,1709668248268,-270.00298535,0.0002295,2]
[317013889,1709668248278,-319.61869835,0.00023998,2]
[317013892,1709668248288,-1375.77,0.00023999,2]
[317013895,1709668248297,-1225.61,0.00023999,2]
[317013897,1709668248310,-1225.61,0.00023999,2]
[317013900,1709668248320,-1225.61,0.00023999,2]
[317013903,1709668248330,-1225.61,0.00023999,2]
[317013905,1709668248340,-1225.61,0.00023999,2]
[317013908,1709668248349,-1225.61,0.00023999,2]
[317013911,1709668248358,-1225.61,0.00023999,2]
[317013913,1709668248368,-1225.61,0.00023999,2]
[317013915,1709668248378,-1225.61,0.00023999,2]
[317013917,1709668248387,-1225.61,0.00023999,2]